lending/lending_fUSD_20240410
["ID","MTS","AMOUNT","RATE_DAILY","PERIOD"]
[322049555,1712724454557,-3187.1374719,0.00020793,2]
[322049556,1712724454576,-200.0,0.00020799,2]
[322049557,1712724454595,-377.6825,0.000208,2]
[322049558,1712724454615,-161.29447988,0.000208,2]
[322049559,1712724454637,-180.90436466,0.000208,2]
[322049560,1712724454659,-222.2271284,0.000208,2]
[322049561,1712724454679,-1028.78248,0.0002082,2]
[322049562,1712724454700,-500.0,0.00020831,2]
[322049563,1712724454720,-200.0,0.00020832,2]
[322049564,1712724454740,-800.0,0.00020832,2]
[322049565,1712724454762,-500.0,0.00020832,2]
[322049566,1712724454783,-152.27,0.00020843,2]
[322049567,1712724454805,-180.90436464,0.0002085,2]
[322049568,1712724454828,-2910.50023672,0.0002089,2]
[322049569,1712724454852,-218.28718761,0.00020898,2]
[322049570,1712724454874,-310.8781278,0.00020898,2]
[322049571,1712724454896,-2361.93347219,0.00020898,2]
[322049572,1712724454918,-513.16357943,0.00020898,2]
[322049573,1712724454940,-500.0,0.00020898,2]
[322049574,1712724454962,-739.475913,0.00020898,2]
[322049575,1712724454981,-374.94515625,0.00020898,2]
[322049576,1712724455004,-3944.09195196,0.00020899,2]
[322049588,1712724632491,-288.25025628,0.00020192,2]
[322049589,1712724632501,-38.69519866,0.00020215,2]
[322049590,1712724632534,-897.30480134,0.00020215,2]
[322049591,1712724632543,-1887.18015147,0.00020767,2]
[322049592,1712724632555,-1299.95732043,0.00020767,2]
[322049593,1712724632564,-1656.26974737,0.000208,2]
[322049600,1712724632658,-2280.58687834,0.000208,2]
[322049602,1712724632669,-1234.38584747,0.000208,2]
[322049655,1712724633231,-1968.28270175,0.000208,2]
[322049732,1712724638628,-5950.14032621,0.000208,2]
[322049889,1712724640293,-1499.98544669,0.000208,2]
[322049896,1712724640353,-527.95832567,0.000208,2]
[322049899,1712724640365,-1382.9596921,0.000208,2]
[322050172,1712724643350,-5470.0005344,0.000208,2]
[322050173,1712724643360,-491.37246061,0.00020899,2]
[322050174,1712724643369,-150.0,0.00020899,2]
[322050175,1712724643378,-9234.9796627,0.000209,3]
[322050176,1712724643390,-31102.94244843,0.000209,3]
[322050177,1712724643480,-3038.77111356,0.000209,3]
[322050202,1712724646935,-549.93116533,0.00020799,2]
[322050204,1712724646944,-66675.84943818,0.000209,3]
[322050231,1712724879514,1000.0,0.00018,30]
[322050233,1712724950742,487.55,0.00017889,2]
[322050235,1712725147233,-251.2,0.00019829,2]
[322050236,1712725147253,-500.0,0.0001989,2]
[322050237,1712725147273,-1248.8,0.00019897,2]
[322050238,1712725147828,-2000.0,0.00019897,2]
[322050239,1712725148438,-2000.0,0.00019897,2]
[322050240,1712725149032,-2000.0,0.00019897,2]
[322050241,1712725149388,-1392.88215402,0.00019897,2]
[322050242,1712725168646,607.11784598,0.00019897,2]
[322050243,1712725168669,2000.0,0.00019897,2]
[322050244,1712725168690,2000.0,0.00019897,2]
[322050245,1712725168711,97.22086034,0.00019897,2]
[322050246,1712725175594,2000.0,0.000198,30]
[322050247,1712725219871,1902.77913966,0.00019897,2]
[322050248,1712725219894,2000.0,0.00019897,2]
[322050249,1712725219916,2000.0,0.00019897,2]
[322050250,1712725219939,1298.62265536,0.00019897,2]
[322050251,1712725240451,2000.0,0.000198,30]
[322050252,1712725255981,2000.0,0.000198,30]
[322050253,1712725279592,701.37734464,0.00019,3]
[322050254,1712725279616,548.62265536,0.00019,3]
[322050255,1712725302653,2000.0,0.000198,30]
[322050256,1712725308381,1451.37734464,0.00019897,2]
[322050257,1712725308401,2000.0,0.00019897,2]
[322050258,1712725308422,2000.0,0.00019897,2]
[322050259,1712725308442,1750.02445038,0.00019897,2]
[322050260,1712725310965,2000.0,0.000198,30]
[322050261,1712725317606,2000.0,0.000198,30]
[322050262,1712725322562,2000.0,0.000198,30]
[322050264,1712725396755,249.97554962,0.00019844,2]
[322050265,1712725396776,887.97445038,0.00019844,2]
[322050266,1712725396880,1112.02554962,0.00019897,2]
[322050267,1712725396900,2000.0,0.00019897,2]
[322050268,1712725396920,639.90478558,0.00019897,2]
[322050270,1712725441502,1360.09521442,0.00019864,2]
[322050271,1712725521755,799.04,0.00019781,2]
[322050272,1712725548160,-3751.9303352,0.00019863,2]
[322050273,1712725548180,-965.53748946,0.00019864,2]
[322050274,1712725588304,412.2325281,0.00017908,2]
[322050275,1712725588325,50.9374719,0.00017908,2]
[322050276,1712725596105,-291.82859999,0.00019829,2]
[322050277,1712725596126,-2505.80944189,0.00019864,2]
[322050278,1712725645095,-3751.9303352,0.00019863,2]
[322050279,1712725645117,-1881.84785423,0.00019864,2]
[322050280,1712725645138,-1192.86641426,0.00019929,2]
[322050281,1712725645157,-199.72,0.0001995,2]
[322050282,1712725645179,-152.27,0.00019993,2]
[322050283,1712725645200,-463.17,0.00020172,2]
[322050284,1712725645220,-164.420939,0.00020274,2]
[322050285,1712725645241,-150.0,0.00020399,2]
[322050286,1712725645261,-3236.1546369,0.00020468,2]
[322050287,1712725645281,-906.64,0.000205,2]
[322050288,1712725645302,-822.78,0.000205,2]
[322050289,1712725645322,-25233.3613603,0.000205,2]
[322050290,1712725705918,155.37993808,0.00018448,2]
[322050303,1712725831485,-150.0,0.00019931,2]
[322050304,1712725831495,-2215.71554263,0.00019931,2]
[322050305,1712725831507,-1536.21479257,0.00019931,2]
[322050306,1712725831517,-5300.79160395,0.00019932,2]
[322050307,1712725831754,-3058.87839605,0.00019932,2]
[322050308,1712725831764,-180.90436464,0.000204,2]
[322050309,1712725831774,-53462.11419046,0.000205,2]
[322050310,1712725831786,-488.40987031,0.000205,2]
[322050339,1712725837363,-345.5,0.000205,2]
[322050403,1712725837747,-679.54302976,0.000205,2]
[322050413,1712725838386,-691.52,0.000205,2]
[322050532,1712725839600,-4075.51993777,0.000205,2]
[322050674,1712725842654,-11439.29615793,0.000205,2]
[322050675,1712725842666,-1124.81695055,0.000205,2]
[322050676,1712725842844,-7959.13241459,0.000205,2]
[322050690,1712725845459,-1000.9668,0.000205,2]
[322050691,1712725845471,-35268.28281408,0.000205,2]
[322050692,1712725845838,-9e-08,0.000205,2]
[322050693,1712725845850,-1155.79324561,0.000205,2]
[322050694,1712725846572,-9418.36798262,0.000205,2]
[322050697,1712725867192,2003.587,0.0003,25]
[322050698,1712725913976,155.0,0.00018808,2]
[322050699,1712725975841,323.14534812,0.00018808,2]
[322050700,1712725991852,322.90990992,0.00018808,2]
[322050701,1712726074814,203.74317491,0.00019178,2]
[322050702,1712726080460,429.36,0.00017959,2]
[322050705,1712726396490,848.15,0.0001979,2]
[322050707,1712726523593,511.37415707,0.00019771,2]
[322050708,1712726523613,127.86584293,0.00019771,2]
[322050709,1712726530703,549.93116533,0.0001977,2]
[322050711,1712726683025,407.89,0.00017859,2]
[322050712,1712726766943,1640.33,0.00019738,2]
[322050715,1712726908693,273.98299174,0.00019781,2]
[322050727,1712727032040,-287.37338502,0.0001975,2]
[322050729,1712727032051,-201.22661498,0.0001975,2]
[322050731,1712727032060,-57.87338502,0.0001978,2]
[322050751,1712727037597,-2000.0,0.0001978,2]
[322050760,1712727037678,-1694.05695018,0.0001978,2]
[322050762,1712727037690,-291.11700826,0.00019781,2]
[322050764,1712727037699,-889.98517888,0.00020088,2]
[322051102,1712727042086,-397.04,0.00020088,2]
[322051149,1712727042727,-1577.69029858,0.00020088,2]
[322051161,1712727042835,-371.43915954,0.00020088,2]
[322051163,1712727042845,-407.89,0.00020123,2]
[322051165,1712727042855,-500.0,0.000204,2]
[322051168,1712727042865,-170.78414156,0.00020466,2]
[322051170,1712727042874,-150.0,0.00020488,2]
[322051171,1712727042883,-3664.7,0.0002049,2]
[322051172,1712727042893,-499.99,0.0002049,2]
[322051173,1712727042903,-158.34,0.0002049,2]
[322051174,1712727042912,-4000.0,0.00020498,2]
[322051175,1712727042922,-155.51943603,0.00020499,2]
[322051176,1712727042932,-278624.37524593,0.000205,2]
[322051177,1712727042946,-322.9996588,0.000205,2]
[322051178,1712727042956,-326.56857755,0.000205,2]
[322051179,1712727042965,-150.0,0.000205,2]
[322051180,1712727042975,-1037.06461,0.000205,2]
[322051181,1712727042984,-718.0,0.0002052,2]
[322051182,1712727042993,-150.0,0.00020566,2]
[322051183,1712727043003,-151.48,0.000206,2]
[322051184,1712727043012,-300.0,0.000206,2]
[322051185,1712727043021,-150.0,0.000206,2]
[322051186,1712727043031,-411.55,0.000206,2]
[322051187,1712727043040,-150.0,0.000206,2]
[322051188,1712727043049,-1009.0,0.000206,2]
[322051189,1712727043058,-1009.12842267,0.00020612,2]
[322051190,1712727043067,-47005.59624808,0.00020685,2]
[322051191,1712727043077,-152.96337254,0.00020691,2]
[322051192,1712727043086,-300.0,0.000207,2]
[322051193,1712727043095,-200.0,0.00020766,2]
[322051194,1712727043104,-200.0,0.00020782,2]
[322051195,1712727043113,-500.0,0.00020782,2]
[322051196,1712727043122,-1015.0,0.000208,2]
[322051197,1712727043132,-3236.154637,0.00020817,2]
[322051198,1712727043141,-1000.0,0.0002084,2]
[322051199,1712727043150,-4147.65168804,0.00020877,4]
[322051200,1712727043160,-153.58837516,0.00020896,2]
[322051201,1712727043172,-200.24445717,0.00020897,2]
[322051202,1712727043181,-163.46017581,0.00020898,2]
[322051203,1712727043193,-266.67800082,0.00020898,2]
[322051204,1712727043202,-289.05845118,0.00020898,2]
[322051205,1712727043212,-155.86679596,0.00020898,2]
[322051206,1712727043221,-161.60671238,0.00020898,2]
[322051207,1712727043229,-1946.38168202,0.00020898,2]
[322051208,1712727043238,-203.89959198,0.00020898,2]
[322051209,1712727043248,-362.12375082,0.00020898,2]
[322051210,1712727043257,-155.60172329,0.00020898,2]
[322051211,1712727043266,-3393.63826921,0.00020898,2]
[322051212,1712727043276,-155.25241555,0.00020898,2]
[322051213,1712727043285,-500.0,0.00020898,2]
[322051214,1712727043294,-376.29834861,0.00020898,2]
[322051215,1712727043304,-624.81043763,0.00020898,2]
[322051216,1712727043314,-326.13639391,0.00020898,2]
[322051217,1712727043324,-155.555917,0.00020898,2]
[322051218,1712727043334,-155.95222521,0.00020898,2]
[322051219,1712727043345,-307.80096222,0.00020898,2]
[322051220,1712727043354,-1058.17735735,0.00020898,2]
[322051221,1712727043365,-3586.336521,0.00020898,2]
[322051222,1712727043377,-3744.66302997,0.00020898,2]
[322051223,1712727043388,-7040.4304385,0.00020898,2]
[322051224,1712727043398,-1466.2834891,0.00020898,2]
[322051225,1712727043408,-3744.66302987,0.00020898,2]
[322051226,1712727043418,-3744.66302987,0.00020898,2]
[322051227,1712727043428,-3744.66302987,0.00020899,2]
[322051228,1712727043441,-3744.66302987,0.00020899,2]
[322051229,1712727043450,-3744.66302987,0.00020899,2]
[322051230,1712727043459,-1294.88951782,0.00020899,2]
[322051231,1712727043468,-151.0,0.00020899,2]
[322051232,1712727043478,-151.0,0.00020899,2]
[322051233,1712727043487,-174.107824,0.00020899,2]
[322051234,1712727043496,-174.107824,0.00020899,2]
[322051235,1712727043505,-320.635152,0.00020899,2]
[322051236,1712727043514,-320.635152,0.00020899,2]
[322051237,1712727043523,-185.902802,0.00020899,2]
[322051238,1712727043533,-151.0,0.00020899,2]
[322051239,1712727043542,-185.902802,0.00020899,2]
[322051240,1712727043551,-151.0,0.00020899,2]
[322051241,1712727043560,-228.700356,0.00020899,2]
[322051242,1712727043570,-151.0,0.00020899,2]
[322051243,1712727043578,-151.0,0.00020899,2]
[322051244,1712727043588,-151.0,0.00020899,2]
[322051245,1712727043597,-151.0,0.00020899,2]
[322051246,1712727043606,-151.0,0.00020899,2]
[322051247,1712727043615,-151.0,0.00020899,2]
[322051248,1712727043625,-151.0,0.00020899,2]
[322051249,1712727043634,-151.0,0.00020899,2]
[322051250,1712727043643,-151.0,0.00020899,2]
[322051251,1712727043652,-151.0,0.00020899,2]
[322051252,1712727043662,-151.0,0.00020899,2]
[322051253,1712727043671,-151.0,0.00020899,2]
[322051254,1712727043680,-232.720143,0.00020899,2]
[322051255,1712727043691,-151.0,0.00020899,2]
[322051256,1712727043700,-151.0,0.00020899,2]
[322051257,1712727043709,-151.0,0.00020899,2]
[322051258,1712727043718,-151.0,0.00020899,2]
[322051259,1712727043727,-151.0,0.00020899,2]
[322051260,1712727043736,-151.0,0.00020899,2]
[322051261,1712727043745,-151.0,0.00020899,2]
[322051262,1712727043756,-238.263504,0.00020899,2]
[322051263,1712727043765,-151.0,0.00020899,2]
[322051264,1712727043774,-3744.66302987,0.00020899,2]
[322051265,1712727043783,-3744.66302987,0.00020899,2]
[322051266,1712727043793,-3744.66302987,0.00020899,2]
[322051267,1712727043802,-3744.66302987,0.000209,2]
[322051268,1712727043811,-3744.66302987,0.000209,2]
[322051269,1712727043821,-141750.98828734,0.000209,3]
[322051270,1712727043830,-1860.83537477,0.000209,2]
[322051271,1712727043839,-500.0,0.000209,2]
[322051272,1712727043848,-160.0,0.000209,2]
[322051273,1712727043858,-10000.0,0.000209,2]
[322051274,1712727043868,-151.552317,0.000209,2]
[322051275,1712727043877,-151.0,0.000209,2]
[322051276,1712727043886,-160.935249,0.000209,2]
[322051277,1712727043895,-151.0,0.000209,2]
[322051278,1712727043905,-153.157662,0.000209,2]
[322051279,1712727043914,-151.0,0.000209,2]
[322051280,1712727043923,-152.500313,0.000209,2]
[322051281,1712727043932,-151.0,0.000209,2]
[322051282,1712727043945,-151.0,0.000209,2]
[322051283,1712727043954,-151.0,0.000209,2]
[322051284,1712727043963,-154.396419,0.000209,2]
[322051285,1712727043972,-151.0,0.000209,2]
[322051286,1712727043983,-151.0,0.000209,2]
[322051287,1712727043993,-151.0,0.000209,2]
[322051288,1712727044003,-197.141779,0.000209,2]
[322051289,1712727044012,-151.0,0.000209,2]
[322051290,1712727044021,-151.0,0.000209,2]
[322051291,1712727044032,-151.0,0.000209,2]
[322051292,1712727044041,-151.438505,0.000209,2]
[322051293,1712727044051,-151.0,0.000209,2]
[322051294,1712727044061,-151.0,0.000209,2]
[322051295,1712727044071,-151.0,0.000209,2]
[322051296,1712727044080,-151.0,0.000209,2]
[322051297,1712727044090,-151.0,0.000209,2]
[322051298,1712727044099,-152.552885,0.000209,2]
[322051299,1712727044108,-151.0,0.000209,2]
[322051300,1712727044117,-151.0,0.000209,2]
[322051301,1712727044126,-151.0,0.000209,2]
[322051302,1712727044135,-151.0,0.000209,2]
[322051303,1712727044144,-151.0,0.000209,2]
[322051304,1712727044154,-151.0,0.000209,2]
[322051305,1712727044162,-151.0,0.000209,2]
[322051306,1712727044175,-151.0,0.000209,2]
[322051307,1712727044185,-151.0,0.000209,2]
[322051308,1712727044197,-151.0,0.000209,2]
[322051309,1712727044206,-151.0,0.000209,2]
[322051310,1712727044216,-151.0,0.000209,2]
[322051311,1712727044226,-151.0,0.000209,2]
[322051312,1712727044234,-4275.17566492,0.000209,2]
[322051313,1712727044294,-1524.82433508,0.000209,2]
[322051314,1712727044303,-166.627786,0.000209,2]
[322051315,1712727044313,-166.627786,0.000209,2]
[322051316,1712727044322,-166.627786,0.000209,2]
[322051317,1712727044331,-151.0,0.000209,2]
[322051318,1712727044340,-151.0,0.000209,2]
[322051319,1712727044350,-151.0,0.000209,2]
[322051320,1712727044359,-151.0,0.000209,2]
[322051321,1712727044368,-151.0,0.000209,2]
[322051322,1712727044377,-151.0,0.000209,2]
[322051323,1712727044386,-195.899302,0.000209,2]
[322051324,1712727044396,-195.899302,0.000209,2]
[322051325,1712727044404,-195.899302,0.000209,2]
[322051326,1712727044414,-195.899302,0.000209,2]
[322051327,1712727044423,-195.899302,0.000209,2]
[322051328,1712727044432,-117.82944423,0.000209,2]
[322051329,1712727044459,-78.06985777,0.000209,2]
[322051330,1712727044468,-195.899302,0.000209,2]
[322051331,1712727044477,-195.899302,0.000209,2]
[322051332,1712727044487,-151.0,0.000209,2]
[322051333,1712727044496,-151.0,0.000209,2]
[322051334,1712727044505,-151.0,0.000209,2]
[322051335,1712727044514,-151.0,0.000209,2]
[322051336,1712727044523,-151.0,0.000209,2]
[322051337,1712727044532,-157.082082,0.000209,2]
[322051338,1712727044541,-370.741997,0.000209,2]
[322051339,1712727044550,-370.741997,0.000209,2]
[322051340,1712727044559,-370.741997,0.000209,2]
[322051341,1712727044568,-188.11661271,0.000209,2]
[322051342,1712727044598,-182.62538429,0.000209,2]
[322051343,1712727044607,-370.741997,0.000209,2]
[322051344,1712727044616,-370.741997,0.000209,2]
[322051345,1712727044625,-370.741997,0.000209,2]
[322051346,1712727044635,-370.741997,0.000209,2]
[322051347,1712727044643,-210.572382,0.000209,2]
[322051348,1712727044653,-210.572382,0.000209,2]
[322051349,1712727044661,-210.572382,0.000209,2]
[322051350,1712727044670,-210.572382,0.000209,2]
[322051351,1712727044679,-210.572382,0.000209,2]
[322051352,1712727044690,-210.572382,0.000209,2]
[322051353,1712727044699,-210.572382,0.000209,2]
[322051354,1712727044709,-210.572382,0.000209,2]
[322051355,1712727044718,-482.484988,0.000209,2]
[322051356,1712727044727,-482.484988,0.000209,2]
[322051357,1712727044736,-482.484988,0.000209,2]
[322051358,1712727044745,-151.0,0.000209,2]
[322051359,1712727044754,-151.0,0.000209,2]
[322051360,1712727044763,-482.484988,0.000209,2]
[322051361,1712727044772,-152.655954,0.000209,2]
[322051362,1712727044781,-153.849275,0.000209,2]
[322051363,1712727044791,-482.484988,0.000209,2]
[322051364,1712727044800,-482.484988,0.000209,2]
[322051365,1712727044810,-482.484988,0.000209,2]
[322051366,1712727044819,-482.484988,0.000209,2]
[322051367,1712727044832,-151.0,0.000209,2]
[322051368,1712727044841,-154.688737,0.000209,2]
[322051369,1712727044851,-151.0,0.000209,2]
[322051370,1712727044861,-153.229557,0.000209,2]
[322051371,1712727044870,-357.742932,0.000209,2]
[322051372,1712727044880,-357.742932,0.000209,2]
[322051373,1712727044890,-357.742932,0.000209,2]
[322051374,1712727044899,-357.742932,0.000209,2]
[322051375,1712727044908,-357.742932,0.000209,2]
[322051376,1712727044917,-357.742932,0.000209,2]
[322051377,1712727044928,-357.742932,0.000209,2]
[322051378,1712727044939,-357.742932,0.000209,2]
[322051379,1712727044948,-151.0,0.000209,2]
[322051380,1712727044957,-151.0,0.000209,2]
[322051381,1712727044966,-151.0,0.000209,2]
[322051382,1712727044976,-155.437251,0.000209,2]
[322051383,1712727044985,-151.0,0.000209,2]
[322051384,1712727044995,-151.0,0.000209,2]
[322051385,1712727045004,-151.0,0.000209,2]
[322051386,1712727045015,-151.0,0.000209,2]
[322051387,1712727045025,-207.54713,0.000209,2]
[322051388,1712727045035,-151.0,0.000209,2]
[322051389,1712727045045,-151.0,0.000209,2]
[322051390,1712727045055,-151.0,0.000209,2]
[322051391,1712727045065,-151.0,0.000209,2]
[322051392,1712727045075,-151.0,0.000209,2]
[322051393,1712727045085,-151.0,0.000209,2]
[322051394,1712727045095,-151.0,0.000209,2]
[322051395,1712727045105,-151.0,0.000209,2]
[322051396,1712727045115,-151.0,0.000209,2]
[322051397,1712727045125,-151.0,0.000209,2]
[322051398,1712727045136,-153.607013,0.000209,2]
[322051399,1712727045145,-320.131931,0.000209,2]
[322051400,1712727045155,-320.131931,0.000209,2]
[322051401,1712727045164,-320.131931,0.000209,2]
[322051402,1712727045178,-320.131931,0.000209,2]
[322051403,1712727045188,-320.131931,0.000209,2]
[322051404,1712727045199,-320.131931,0.000209,2]
[322051405,1712727045211,-320.131931,0.000209,2]
[322051406,1712727045221,-320.131931,0.000209,2]
[322051407,1712727045230,-151.0,0.000209,2]
[322051408,1712727045239,-151.0,0.000209,2]
[322051409,1712727045251,-151.0,0.000209,2]
[322051410,1712727045262,-151.0,0.000209,2]
[322051411,1712727045271,-151.0,0.000209,2]
[322051412,1712727045282,-151.0,0.000209,2]
[322051413,1712727045292,-151.0,0.000209,2]
[322051414,1712727045302,-152.459772,0.000209,2]
[322051415,1712727045311,-151.0,0.000209,2]
[322051416,1712727045321,-151.0,0.000209,2]
[322051417,1712727045331,-151.0,0.000209,2]
[322051418,1712727045341,-151.0,0.000209,2]
[322051419,1712727045350,-151.0,0.000209,2]
[322051420,1712727045359,-151.0,0.000209,2]
[322051421,1712727045368,-152.098227,0.000209,2]
[322051422,1712727045377,-151.0,0.000209,2]
[322051423,1712727045386,-151.0,0.000209,2]
[322051424,1712727045395,-151.0,0.000209,2]
[322051425,1712727045404,-169.303121,0.000209,2]
[322051426,1712727045413,-151.0,0.000209,2]
[322051427,1712727045422,-153.162407,0.000209,2]
[322051428,1712727045431,-151.0,0.000209,2]
[322051429,1712727045441,-151.0,0.000209,2]
[322051430,1712727045451,-151.0,0.000209,2]
[322051431,1712727045460,-155.625544,0.000209,2]
[322051432,1712727045469,-165.266202,0.000209,2]
[322051433,1712727045478,-165.266202,0.000209,2]
[322051434,1712727045487,-165.266202,0.000209,2]
[322051435,1712727045498,-165.266202,0.000209,2]
[322051436,1712727045507,-165.266202,0.000209,2]
[322051437,1712727045517,-200.660494,0.000209,2]
[322051438,1712727045525,-165.266202,0.000209,2]
[322051439,1712727045535,-165.266202,0.000209,2]
[322051440,1712727045544,-200.660494,0.000209,2]
[322051441,1712727045553,-165.266202,0.000209,2]
[322051442,1712727045562,-200.660494,0.000209,2]
[322051443,1712727045571,-200.660494,0.000209,2]
[322051444,1712727045580,-200.660494,0.000209,2]
[322051446,1712727045589,-200.660494,0.000209,2]
[322051448,1712727045598,-200.660494,0.000209,2]
[322051450,1712727045607,-200.660494,0.000209,2]
[322051452,1712727045615,-431.01853,0.000209,2]
[322051454,1712727045625,-151.0,0.000209,2]
[322051456,1712727045633,-431.01853,0.000209,2]
[322051458,1712727045642,-431.01853,0.000209,2]
[322051459,1712727045651,-161.077838,0.000209,2]
[322051460,1712727045660,-431.01853,0.000209,2]
[322051461,1712727045669,-431.01853,0.000209,2]
[322051462,1712727045678,-431.01853,0.000209,2]
[322051463,1712727045688,-431.01853,0.000209,2]
[322051464,1712727045697,-431.01853,0.000209,2]
[322051465,1712727045706,-171.397167,0.000209,2]
[322051466,1712727045716,-171.397167,0.000209,2]
[322051467,1712727045725,-171.397167,0.000209,2]
[322051468,1712727045734,-171.397167,0.000209,2]
[322051469,1712727045743,-171.397167,0.000209,2]
[322051470,1712727045752,-171.397167,0.000209,2]
[322051471,1712727045762,-171.397167,0.000209,2]
[322051472,1712727045771,-171.397167,0.000209,2]
[322051473,1712727045780,-151.0,0.000209,2]
[322051474,1712727045790,-151.0,0.000209,2]
[322051475,1712727045799,-151.0,0.000209,2]
[322051476,1712727045808,-151.0,0.000209,2]
[322051477,1712727045817,-151.0,0.000209,2]
[322051478,1712727045826,-151.0,0.000209,2]
[322051479,1712727045836,-151.0,0.000209,2]
[322051480,1712727045846,-151.0,0.000209,2]
[322051481,1712727045855,-151.0,0.000209,2]
[322051482,1712727045865,-264.524369,0.000209,2]
[322051483,1712727045874,-805.678089,0.000209,2]
[322051484,1712727045883,-264.524369,0.000209,2]
[322051485,1712727045892,-264.524369,0.000209,2]
[322051486,1712727045901,-805.678089,0.000209,2]
[322051487,1712727045910,-151.0,0.000209,2]
[322051488,1712727046107,-805.678089,0.000209,2]
[322051489,1712727046117,-151.0,0.000209,2]
[322051490,1712727046126,-805.678089,0.000209,2]
[322051491,1712727046136,-151.0,0.000209,2]
[322051492,1712727046145,-805.678089,0.000209,2]
[322051493,1712727046155,-264.524369,0.000209,2]
[322051494,1712727046164,-805.678089,0.000209,2]
[322051495,1712727046177,-264.524369,0.000209,2]
[322051496,1712727046186,-805.678089,0.000209,2]
[322051497,1712727046197,-264.524369,0.000209,2]
[322051498,1712727046208,-805.678089,0.000209,2]
[322051499,1712727046218,-151.0,0.000209,2]
[322051500,1712727046227,-219.62708,0.000209,2]
[322051501,1712727046236,-151.0,0.000209,2]
[322051502,1712727046246,-151.0,0.000209,2]
[322051503,1712727046256,-151.0,0.000209,2]
[322051504,1712727046265,-274.375241,0.000209,2]
[322051505,1712727046274,-151.0,0.000209,2]
[322051506,1712727046283,-151.0,0.000209,2]
[322051507,1712727046292,-151.0,0.000209,2]
[322051508,1712727046302,-151.0,0.000209,2]
[322051509,1712727046311,-151.0,0.000209,2]
[322051510,1712727046321,-159.785278,0.000209,2]
[322051511,1712727046331,-151.0,0.000209,2]
[322051512,1712727046342,-151.0,0.000209,2]
[322051513,1712727046351,-151.0,0.000209,2]
[322051514,1712727046361,-151.0,0.000209,2]
[322051515,1712727046371,-151.0,0.000209,2]
[322051516,1712727046380,-151.0,0.000209,2]
[322051517,1712727046390,-151.0,0.000209,2]
[322051518,1712727046399,-151.0,0.000209,2]
[322051519,1712727046408,-151.0,0.000209,2]
[322051520,1712727046417,-151.0,0.000209,2]
[322051521,1712727046426,-151.0,0.000209,2]
[322051522,1712727046435,-151.0,0.000209,2]
[322051523,1712727046445,-160.157291,0.000209,2]
[322051524,1712727046454,-3744.66302987,0.000209,2]
[322051525,1712727046463,-151.0,0.000209,2]
[322051526,1712727046471,-152.814619,0.000209,2]
[322051527,1712727046481,-215.392643,0.000209,2]
[322051528,1712727046490,-215.392643,0.000209,2]
[322051529,1712727046500,-215.392643,0.000209,2]
[322051530,1712727046510,-215.392643,0.000209,2]
[322051531,1712727046519,-215.392643,0.000209,2]